bitfinex/quotes_BTCUSD_20220405
["timestamp","ask_amount","ask_price","bid_price","bid_amount"]
[1649147179647,0.36094361,46631.0,46630.0,0.05461505]
[1649147179845,0.36094361,46631.0,46628.0,0.28576574]
[1649147179846,0.36526058,46629.0,46628.0,0.28576574]
[1649147181181,0.36526058,46629.0,46628.0,0.33576574]
[1649147182181,0.36526058,46629.0,46628.0,0.28576574]
[1649147183032,0.36526058,46629.0,46628.0,0.33576574]
[1649147184815,0.36526058,46629.0,46628.0,0.22853463]
[1649147184916,0.36526058,46629.0,46628.0,0.002]
[1649147192271,0.36526058,46629.0,46628.0,0.17853463]
[1649147192371,0.36526058,46629.0,46628.0,0.22853463]
[1649147193525,0.36526058,46629.0,46628.0,0.002]
[1649147194337,0.36526058,46629.0,46628.0,0.17853463]
[1649147194679,0.36526058,46629.0,46628.0,0.002]
[1649147197221,0.35894361,46628.0,46627.0,0.28115491]
[1649147197320,0.58296713,46628.0,46627.0,0.28115491]
[1649147198220,0.58296713,46628.0,46627.0,0.23115491]
[1649147199025,0.58296713,46628.0,46627.0,0.05462028]
[1649147199222,0.58296713,46628.0,46627.0,0.23113837]
[1649147199376,0.58296713,46628.0,46627.0,0.28113837]
[1649147200274,0.58296713,46628.0,46627.0,0.05462028]
[1649147204378,0.58296713,46628.0,46627.0,0.23114964]
[1649147204533,0.58296713,46628.0,46627.0,0.001]
[1649147204631,0.92576713,46628.0,46627.0,0.001]
[1649147204735,0.62576713,46628.0,46627.0,0.001]
[1649147204933,0.84552305,46628.0,46627.0,0.001]
[1649147205130,0.62576713,46628.0,46627.0,0.001]
[1649147205329,0.62481713,46628.0,46627.0,0.001]
[1649147205432,0.62364713,46628.0,46627.0,0.001]
[1649147206475,0.62275713,46628.0,46627.0,0.001]
[1649147206675,0.92152713,46628.0,46627.0,0.001]
[1649147206777,1.14110835,46628.0,46627.0,0.001]
[1649147206878,1.13975835,46628.0,46627.0,0.001]
[1649147206977,0.92017713,46628.0,46627.0,0.001]
[1649147207180,0.91953713,46628.0,46627.0,0.001]
[1649147207477,0.91740092,46628.0,46627.0,0.001]
[1649147207578,1.13617421,46628.0,46627.0,0.001]
[1649147207679,0.91659299,46628.0,46627.0,0.001]
[1649147209886,0.36438493,46617.0,46614.0,0.16185391]
[1649147209987,0.36438493,46617.0,46616.0,0.002]
[1649147210193,0.36538493,46617.0,46616.0,0.002]
[1649147211003,0.63123664,46617.0,46616.0,0.002]
[1649147215925,0.31033764,46617.0,46616.0,0.002]
[1649147216026,0.63123664,46617.0,46616.0,0.002]
[1649147216127,0.31033764,46617.0,46616.0,0.002]
[1649147216226,0.63123664,46617.0,46616.0,0.002]
[1649147218687,0.72687047,46616.0,46615.0,0.06536208]
[1649147218777,0.34776947,46616.0,46615.0,0.05463208]
[1649147218879,0.34776947,46616.0,46615.0,0.23106994]
[1649147219886,0.34776947,46616.0,46615.0,0.05463208]
[1649147220182,0.34776947,46616.0,46615.0,0.35649285]
[1649147220331,0.34776947,46616.0,46615.0,0.05463208]
[1649147220933,0.34776947,46616.0,46615.0,0.26463208]
[1649147223677,0.02687047,46616.0,46615.0,0.26463208]
[1649147223778,0.34776947,46616.0,46615.0,0.26463208]
[1649147223981,0.02687047,46616.0,46615.0,1.63825959]
[1649147226781,0.10687047,46616.0,46615.0,1.7991296]
[1649147227183,0.10687047,46616.0,46615.0,1.8491296]
[1649147227284,0.08,46616.0,46615.0,1.82225913]
[1649147229078,0.04448593,46617.0,46615.0,1.99870057]
[1649147229179,0.04448593,46617.0,46616.0,0.40508761]
[1649147229276,0.04448593,46617.0,46616.0,0.41593632]
[1649147229379,0.04448593,46617.0,46616.0,0.28950286]
[1649147229485,0.00058271,46620.0,46617.0,1.8]
[1649147229588,0.01072,46628.0,46617.0,1.8]
[1649147229679,0.7708,46630.0,46621.0,0.05361331]
[1649147229831,0.46550199,46632.0,46622.0,0.22898196]
[1649147229832,0.17560199,46632.0,46622.0,0.22898196]
[1649147229932,0.331619,46628.0,46625.0,0.26739377]
[1649147230534,0.32003748,46628.0,46625.0,0.26739377]
[1649147230629,0.33075748,46628.0,46625.0,0.26739377]
[1649147230731,0.33075748,46628.0,46620.0,0.15722661]
[1649147230831,0.01072,46628.0,46620.0,0.15722661]
[1649147230930,0.04460546,46629.0,46625.0,0.05361329]
[1649147231029,0.32092,46628.0,46625.0,0.05361329]
[1649147232591,0.32092,46628.0,46620.0,0.05]
[1649147232592,0.62092,46628.0,46620.0,0.05]
[1649147232682,0.63164,46628.0,46619.0,0.08009743]
[1649147232785,0.63164,46628.0,46619.0,0.03009743]
[1649147232885,0.63164,46628.0,46619.0,0.08009743]
[1649147232982,0.32092,46626.0,46619.0,0.08009743]
[1649147233332,0.32154235,46626.0,46619.0,0.08009743]
[1649147233532,0.29195833,46625.0,46619.0,0.08009743]
[1649147233633,0.32092,46624.0,46619.0,0.08009743]
[1649147234036,0.29195833,46625.0,46619.0,0.08009743]
[1649147234285,0.32092,46624.0,46619.0,0.08009743]
[1649147234584,0.32154237,46624.0,46619.0,0.08009743]
[1649147234886,0.00062237,46624.0,46619.0,0.08009743]
[1649147235589,0.29195833,46625.0,46619.0,0.08009743]
[1649147235688,0.32092,46624.0,46620.0,0.10724094]
[1649147235790,0.32154237,46624.0,46620.0,0.10724094]
[1649147236761,0.32092,46624.0,46620.0,0.10724094]
[1649147236962,0.32154237,46624.0,46620.0,0.10724094]
[1649147237916,0.32092,46624.0,46620.0,0.10724094]
[1649147238014,0.32092,46624.0,46619.0,0.08009743]
[1649147238217,0.32153076,46624.0,46619.0,0.08009743]
[1649147238467,0.62153076,46624.0,46619.0,0.08009743]
[1649147239168,0.62092,46624.0,46619.0,0.08009743]
[1649147239369,0.62153076,46624.0,46619.0,0.08009743]
[1649147240273,0.22398762,46617.0,46616.0,0.17706494]
[1649147240375,0.22398762,46617.0,46616.0,0.17645407]
[1649147240575,0.22398762,46617.0,46616.0,0.17706494]
[1649147241574,0.22398762,46617.0,46616.0,0.17645407]
[1649147242178,0.22398762,46617.0,46616.0,0.22645407]
[1649147242277,0.22398762,46617.0,46616.0,0.05]
[1649147242479,0.22398762,46617.0,46615.0,1.8822672]
[1649147242581,0.22398762,46617.0,46615.0,1.91237502]
[1649147242978,0.22398762,46617.0,46615.0,1.66473533]
[1649147243733,0.22398762,46617.0,46615.0,1.7719873]
[1649147243872,0.22398762,46617.0,46616.0,0.17647254]
[1649147243972,0.22398762,46617.0,46615.0,1.7719873]
[1649147244323,0.22398762,46617.0,46615.0,2.25244117]
[1649147244973,0.22398762,46617.0,46615.0,2.35969409]
[1649147245825,0.22398762,46617.0,46615.0,2.58027349]
[1649147246076,0.22349851,46617.0,46615.0,2.58027349]
[1649147246678,0.22221276,46617.0,46615.0,2.58027349]
[1649147249073,0.22221276,46617.0,46616.0,0.2705794]
[1649147250176,0.22221276,46617.0,46616.0,0.05]
[1649147250433,0.22221276,46617.0,46615.0,2.35969409]
[1649147250626,0.22209497,46617.0,46615.0,2.35969409]
[1649147251575,0.22209497,46617.0,46616.0,0.22067832]
[1649147253128,0.22209497,46617.0,46615.0,2.25244212]
[1649147255084,0.22209497,46617.0,46616.0,0.30513556]
[1649147255443,0.22209497,46617.0,46615.0,1.77198825]
[1649147256137,0.22209497,46617.0,46615.0,2.03668353]
[1649147256238,0.22209497,46617.0,46615.0,1.77198825]
[1649147256642,0.22209497,46617.0,46615.0,2.03668353]
[1649147257039,0.22209497,46617.0,46616.0,0.25252342]
[1649147257138,0.22209497,46617.0,46616.0,0.2525489]
[1649147257992,0.22209497,46617.0,46615.0,2.03668353]
[1649147258438,0.22209497,46617.0,46616.0,0.25276181]
[1649147258538,0.22209497,46617.0,46615.0,2.03668353]
[1649147258739,0.22209497,46617.0,46615.0,2.09030987]
[1649147261768,0.22209497,46617.0,46615.0,0.71668236]
[1649147261970,0.22209497,46617.0,46616.0,0.2206886]
[1649147262068,0.22209497,46617.0,46616.0,0.05]
[1649147262372,0.22209497,46617.0,46615.0,0.64256786]
[1649147262470,0.22209497,46617.0,46615.0,0.53894152]
[1649147262679,0.32092,46616.0,46615.0,0.31825292]
[1649147262776,0.22209497,46617.0,46615.0,0.31825292]
[1649147262875,0.32092,46616.0,46615.0,0.31825292]
[1649147262977,0.22209497,46617.0,46615.0,0.31825292]
[1649147263080,0.32092,46616.0,46615.0,0.261]
[1649147263179,0.22209497,46617.0,46615.0,0.261]
[1649147264531,0.32092,46616.0,46615.0,0.261]
[1649147264980,0.31592,46616.0,46615.0,0.261]
[1649147265281,0.31592,46616.0,46615.0,0.211]
[1649147265432,0.22209497,46617.0,46615.0,0.211]
[1649147265530,0.320933,46616.0,46615.0,0.211]
[1649147265634,0.22209497,46617.0,46615.0,0.211]
[1649147265732,0.320933,46616.0,46615.0,0.211]
[1649147266230,0.22209497,46617.0,46615.0,0.211]
[1649147266337,0.320933,46616.0,46615.0,0.211]
[1649147267290,0.22209497,46617.0,46615.0,0.211]
[1649147267389,0.320933,46616.0,46615.0,0.211]
[1649147267743,0.22209497,46617.0,46615.0,0.211]
[1649147267841,0.320933,46616.0,46615.0,0.211]
[1649147267942,0.22209497,46617.0,46615.0,0.211]
[1649147268090,0.320933,46616.0,46615.0,0.211]
[1649147268493,0.22209497,46617.0,46615.0,0.211]
[1649147268594,0.320933,46616.0,46615.0,0.211]
[1649147268943,0.22209497,46617.0,46615.0,0.211]
[1649147269045,0.320933,46616.0,46615.0,0.4316886]
[1649147269149,0.22209497,46617.0,46615.0,0.211]
[1649147269245,0.320933,46616.0,46615.0,0.211]
[1649147269348,0.22209497,46617.0,46615.0,0.211]
[1649147269446,0.320933,46616.0,46615.0,0.211]
[1649147269547,0.22209497,46617.0,46615.0,0.211]
[1649147269648,0.320933,46616.0,46615.0,0.211]
[1649147269747,0.22209497,46617.0,46615.0,0.211]
[1649147269848,0.320933,46616.0,46615.0,0.211]
[1649147270280,0.320934,46616.0,46615.0,0.211]
[1649147271534,0.320934,46616.0,46615.0,0.38756937]
[1649147273926,0.320934,46616.0,46615.0,0.211]
[1649147277730,0.22209497,46617.0,46615.0,0.211]
[1649147277834,0.320934,46616.0,46615.0,0.211]
[1649147277931,0.22209497,46617.0,46615.0,0.211]
[1649147278031,0.320934,46616.0,46615.0,0.211]
[1649147278131,0.22209497,46617.0,46615.0,0.211]
[1649147278532,0.22209497,46617.0,46615.0,0.44397202]
[1649147278634,0.22209497,46617.0,46615.0,0.211]
[1649147278738,0.320934,46616.0,46615.0,0.211]
[1649147285782,0.22209497,46617.0,46615.0,0.211]
[1649147285883,0.320934,46616.0,46615.0,0.211]
[1649147286136,0.22209497,46617.0,46615.0,0.211]
[1649147286232,0.320934,46616.0,46615.0,0.211]
[1649147286332,0.22209497,46617.0,46615.0,0.211]
[1649147286436,0.320934,46616.0,46615.0,0.211]
[1649147286533,0.22209497,46617.0,46615.0,0.211]
[1649147287385,0.320934,46616.0,46615.0,0.211]
[1649147287537,0.22209497,46617.0,46615.0,0.211]
[1649147287738,0.320934,46616.0,46615.0,0.20451351]
[1649147288538,0.22209497,46617.0,46615.0,0.20451351]
[1649147288985,0.320934,46616.0,46615.0,0.20451351]
[1649147289080,0.22209497,46617.0,46615.0,0.20451351]
[1649147289180,0.320934,46616.0,46615.0,0.20451351]
[1649147289280,0.22209497,46617.0,46615.0,0.20451351]
[1649147289380,0.320934,46616.0,46615.0,0.20451351]
[1649147289481,0.22209497,46617.0,46615.0,0.20451351]
[1649147289582,0.320934,46616.0,46615.0,0.20451351]
[1649147289682,0.22209497,46617.0,46615.0,0.20451351]
[1649147289782,0.320934,46616.0,46615.0,0.20451351]
[1649147289885,0.22209497,46617.0,46615.0,0.20451351]
[1649147289984,0.320934,46616.0,46615.0,0.20451351]
[1649147290088,0.22209497,46617.0,46615.0,0.20451351]
[1649147290338,0.320934,46616.0,46615.0,0.20451351]
[1649147290437,0.22209497,46617.0,46615.0,0.20451351]
[1649147290537,0.320934,46616.0,46615.0,0.20451351]
[1649147290635,0.22209497,46617.0,46615.0,0.20451351]
[1649147290738,0.320934,46616.0,46615.0,0.20451351]
[1649147290836,0.22209497,46617.0,46615.0,0.20451351]
[1649147290936,0.320934,46616.0,46615.0,0.20451351]
[1649147291038,0.22209497,46617.0,46615.0,0.20451351]
[1649147291139,0.320934,46616.0,46615.0,0.20451351]
[1649147291340,0.22209497,46617.0,46615.0,0.20451351]
[1649147291789,0.320934,46616.0,46615.0,0.20451351]
[1649147291889,0.22209497,46617.0,46615.0,0.20451351]
[1649147291990,0.320934,46616.0,46615.0,0.20451351]
[1649147292092,0.22209497,46617.0,46615.0,0.20451351]
[1649147292191,0.320934,46616.0,46615.0,0.20451351]
[1649147292292,0.22209497,46617.0,46615.0,0.20451351]
[1649147292392,0.320934,46616.0,46615.0,0.20451351]
[1649147292496,0.22209497,46617.0,46615.0,0.20451351]
[1649147292595,0.320934,46616.0,46615.0,0.20451351]
[1649147292695,0.22209497,46617.0,46615.0,0.20451351]
[1649147292896,0.22209497,46617.0,46615.0,0.11276151]
[1649147293647,0.320934,46616.0,46615.0,0.11276151]
[1649147293799,0.22209497,46617.0,46615.0,0.11276151]
[1649147293897,0.320934,46616.0,46615.0,0.11276151]
[1649147293998,0.22209497,46617.0,46615.0,0.11276151]
[1649147294101,0.320934,46616.0,46615.0,0.11276151]
[1649147294198,0.22209497,46617.0,46615.0,0.11276151]
[1649147294298,0.320934,46616.0,46615.0,0.11276151]
[1649147294399,0.22209497,46617.0,46615.0,0.11276151]
[1649147294500,0.320934,46616.0,46615.0,0.11276151]
[1649147294599,0.22209497,46617.0,46615.0,0.11276151]
[1649147294699,0.320934,46616.0,46615.0,0.11276151]
[1649147294800,0.22209497,46617.0,46615.0,0.11276151]
[1649147294901,0.320934,46616.0,46615.0,0.11276151]
[1649147295000,0.22209497,46617.0,46615.0,0.11276151]
[1649147295299,0.22195415,46617.0,46615.0,0.11276151]
[1649147298586,0.22063415,46617.0,46615.0,0.11276151]
[1649147298786,0.21955415,46617.0,46615.0,0.11276151]
[1649147299437,0.21680353,46617.0,46615.0,0.11276151]
[1649147299536,0.21401459,46617.0,46615.0,0.11276151]
[1649147299737,0.21180989,46617.0,46615.0,0.11276151]
[1649147299888,0.21055973,46617.0,46615.0,0.11276151]
[1649147300636,0.21055973,46617.0,46614.0,1.21066362]
[1649147301592,0.21055973,46617.0,46614.0,1.21008083]
[1649147302439,0.21055973,46617.0,46614.0,1.38664196]
[1649147302738,0.320934,46616.0,46614.0,1.38664196]
[1649147302941,0.21055973,46617.0,46614.0,1.38664196]
[1649147303049,0.320934,46616.0,46614.0,1.38664196]
[1649147303541,0.320934,46616.0,46614.0,0.20666792]
[1649147303641,0.320934,46616.0,46614.0,0.17656113]
[1649147304440,0.320934,46616.0,46613.0,0.17814393]
[1649147304537,0.320934,46616.0,46614.0,0.17656113]
[1649147304837,0.320934,46616.0,46613.0,0.17814393]
[1649147305136,0.320934,46616.0,46613.0,0.17756113]
[1649147306541,0.320934,46616.0,46614.0,0.17656113]
[1649147307842,0.320934,46616.0,46613.0,0.17814393]
[1649147307939,0.320934,46616.0,46614.0,0.17656113]
[1649147308440,0.21055973,46617.0,46614.0,0.17656113]
[1649147310594,0.320934,46616.0,46614.0,0.17656113]
[1649147311787,0.320934,46615.0,46614.0,0.38656113]
[1649147311887,0.320934,46616.0,46614.0,0.38656113]
[1649147312438,0.21055973,46617.0,46614.0,0.38656113]
[1649147312637,0.320934,46616.0,46614.0,0.38656113]
[1649147313040,0.21055973,46617.0,46614.0,0.38656113]
[1649147313342,0.320934,46616.0,46614.0,0.38656113]
[1649147314394,0.320934,46616.0,46615.0,0.17656113]
[1649147314795,0.21055973,46617.0,46614.0,0.38656113]
[1649147314895,0.320934,46616.0,46614.0,0.38656113]
[1649147315944,0.320934,46616.0,46615.0,0.17656113]
[1649147316543,0.21055973,46617.0,46615.0,0.17656113]
[1649147316645,0.320934,46616.0,46615.0,0.17656113]
[1649147316894,0.21055973,46617.0,46615.0,0.17656113]
[1649147316995,0.320934,46616.0,46615.0,0.17656113]
[1649147317099,0.21055973,46617.0,46615.0,0.17656113]
[1649147317245,0.320934,46616.0,46615.0,0.17656113]
[1649147319538,0.31923987,46616.0,46615.0,0.17656113]
[1649147319738,0.31731369,46616.0,46615.0,0.17656113]
[1649147319838,0.31440582,46616.0,46615.0,0.17656113]
[1649147319939,0.31207644,46616.0,46615.0,0.17656113]
[1649147320141,0.30901171,46616.0,46615.0,0.17656113]
[1649147320388,0.30775957,46616.0,46615.0,0.17656113]
[1649147320489,0.30597253,46616.0,46615.0,0.17656113]
[1649147320591,0.30418494,46616.0,46615.0,0.17656113]
[1649147320790,0.30150555,46616.0,46615.0,0.17656113]
[1649147320941,0.21055973,46617.0,46615.0,0.17656113]
[1649147321041,0.320934,46616.0,46615.0,0.17656113]
[1649147321142,0.21055973,46617.0,46615.0,0.17656113]
[1649147321643,0.320934,46616.0,46615.0,0.17656113]
[1649147327044,0.620934,46616.0,46615.0,0.17656113]
[1649147327147,0.620934,46616.0,46614.0,0.38656113]
[1649147327354,0.620934,46616.0,46614.0,0.21]
[1649147327449,0.320934,46616.0,46614.0,0.21]
[1649147327746,0.620934,46616.0,46614.0,0.21]
[1649147328048,0.320934,46616.0,46614.0,0.21]
[1649147330638,0.30052208,46618.0,46617.0,0.15005832]
[1649147330737,1.00023668,46618.0,46617.0,0.15005832]
[1649147330937,0.82457108,46618.0,46617.0,0.15005832]
[1649147339146,0.82457108,46618.0,46617.0,0.20005832]
[1649147340247,0.82457108,46618.0,46617.0,0.15005832]
[1649147347607,0.82432616,46618.0,46617.0,0.15005832]
[1649147348835,0.77093908,46618.0,46617.0,0.15005832]
[1649147349338,0.99050092,46618.0,46617.0,0.15005832]
[1649147349539,0.77093908,46618.0,46617.0,0.15005832]
[1649147355918,0.75950862,46618.0,46617.0,0.15005832]
[1649147359297,0.75950862,46618.0,46617.0,0.20005832]
[1649147361346,0.75950862,46618.0,46617.0,0.15005832]
[1649147365673,0.75950862,46618.0,46608.0,0.01100677]
[1649147365674,3.724937,46617.0,46608.0,0.01100677]
[1649147365777,0.3,46609.0,46606.0,0.02300677]
[1649147365871,0.524049,46608.0,46606.0,0.02300677]
[1649147366021,0.320937,46611.0,46606.0,0.012]
[1649147366122,0.0428,46609.0,46606.0,0.012]
[1649147366223,0.320932,46608.0,46606.0,0.012]
[1649147366320,0.32036865,46608.0,46606.0,0.012]
[1649147367123,0.42036865,46608.0,46606.0,0.012]
[1649147368542,0.32036865,46608.0,46606.0,0.012]
[1649147368743,0.32036865,46608.0,46607.0,0.29747516]
[1649147369096,0.32036865,46608.0,46607.0,0.34747516]
[1649147370696,1.10190594,46608.0,46607.0,0.34747516]
[1649147371095,1.10190594,46608.0,46607.0,0.29747516]
[1649147373545,1.10190594,46608.0,46607.0,0.003]
[1649147376519,1.10190594,46608.0,46607.0,0.213]
[1649147376619,1.10190594,46608.0,46607.0,0.263]
[1649147384190,1.10190594,46608.0,46607.0,0.213]
[1649147387827,0.78153729,46608.0,46607.0,0.70855004]
[1649147387921,0.78153729,46608.0,46607.0,0.89481997]
[1649147388317,0.78153729,46608.0,46607.0,0.57385197]
[1649147388418,0.19285267,46608.0,46607.0,0.57385197]
[1649147389273,0.19285267,46608.0,46607.0,0.75033861]
[1649147390111,0.19285267,46608.0,46607.0,0.79313861]
[1649147390707,0.19285267,46608.0,46607.0,0.61665197]
[1649147390807,0.19285267,46608.0,46607.0,0.93761997]
[1649147391913,0.19285267,46608.0,46607.0,0.83736796]
[1649147392713,0.19285267,46608.0,46607.0,1.15833596]
[1649147392915,0.19285267,46608.0,46607.0,0.83736796]
[1649147393413,0.19285267,46608.0,46607.0,1.15833596]
[1649147393513,0.19285267,46608.0,46607.0,0.83736796]
[1649147396050,0.00875867,46608.0,46607.0,0.83736796]
[1649147396150,0.00875867,46608.0,46607.0,0.61665197]
[1649147396253,0.00875867,46608.0,46607.0,0.83736796]
[1649147396451,0.00875867,46608.0,46607.0,0.61665197]
[1649147396555,0.00875867,46608.0,46607.0,0.31665197]
[1649147396652,0.00875867,46608.0,46607.0,0.85833596]
[1649147396801,0.00875867,46608.0,46607.0,0.53736796]
[1649147399397,0.06099869,46608.0,46607.0,0.70555542]
[1649147399498,0.06502302,46608.0,46607.0,0.71673074]
[1649147399799,0.06502302,46608.0,46607.0,0.49601475]
[1649147401101,0.06502302,46608.0,46607.0,0.45321475]
[1649147401203,0.06502302,46608.0,46607.0,0.44236278]
[1649147401370,0.06502302,46608.0,46607.0,0.44277026]
[1649147401456,0.06502302,46608.0,46607.0,0.76373826]
[1649147401806,0.06099869,46608.0,46607.0,0.43159494]
[1649147404057,0.06099869,46608.0,46607.0,0.43165955]
[1649147405645,0.06099869,46608.0,46607.0,0.60811434]
[1649147406049,0.06099869,46608.0,46607.0,0.43165955]
[1649147406447,0.00875867,46608.0,46607.0,0.35797622]
[1649147406546,0.00875867,46608.0,46607.0,0.2722318]
[1649147406645,0.00875867,46608.0,46607.0,0.30234421]
[1649147407048,0.00875867,46608.0,46607.0,0.2722318]
[1649147408449,0.00039953,46608.0,46607.0,0.2722318]
[1649147408875,0.06812039,46608.0,46607.0,0.2722318]
[1649147408977,0.13584125,46608.0,46607.0,0.72513357]
[1649147409324,0.13690316,46608.0,46607.0,1.04610157]
[1649147409426,0.13690316,46608.0,46607.0,0.50441758]
[1649147409627,0.13690316,46608.0,46607.0,0.83758545]
[1649147410026,0.13690316,46608.0,46607.0,1.15855345]
[1649147410130,0.13690316,46608.0,46607.0,1.0459299]
[1649147410227,0.13690316,46608.0,46607.0,0.82538558]
[1649147410327,0.13690316,46608.0,46607.0,0.8375759]
[1649147410428,0.13690316,46608.0,46607.0,1.1585439]
[1649147410530,0.13690316,46608.0,46607.0,0.8375759]
[1649147410728,0.13690316,46608.0,46607.0,1.1585294]
[1649147410881,0.13690316,46608.0,46607.0,0.72494235]
[1649147410976,0.13690316,46608.0,46607.0,0.83755171]
[1649147411180,0.13690316,46608.0,46607.0,0.72494235]
[1649147411378,0.13690316,46608.0,46607.0,0.83755171]
[1649147411580,0.13690316,46608.0,46607.0,0.61702694]
[1649147411680,0.13690316,46608.0,46607.0,0.50441758]
[1649147411979,0.13690316,46608.0,46607.0,0.45441758]
[1649147412083,0.13690316,46608.0,46607.0,0.50441758]
[1649147413498,0.13690316,46608.0,46607.0,0.82538558]
[1649147413647,0.13690316,46608.0,46607.0,0.50441758]
[1649147414347,0.13690316,46608.0,46607.0,0.5195208]
[1649147414947,0.13690316,46608.0,46607.0,0.6194208]
[1649147415200,0.13690316,46608.0,46607.0,0.5195208]
[1649147415401,0.13690316,46608.0,46607.0,0.8404888]
[1649147415500,0.13690316,46608.0,46607.0,0.74007169]
[1649147415599,0.13690316,46608.0,46607.0,0.8404888]
[1649147415798,0.13690316,46608.0,46607.0,0.5195208]
[1649147416000,0.13690316,46608.0,46607.0,0.63214342]
[1649147416200,0.13690316,46608.0,46607.0,0.5195208]
[1649147416447,0.13690316,46608.0,46607.0,0.63214342]
[1649147416544,0.13690316,46608.0,46607.0,0.6170402]
[1649147416645,0.13690316,46608.0,46607.0,0.50441758]
[1649147418744,0.13690316,46608.0,46607.0,0.50435297]
[1649147418845,0.13690316,46608.0,46607.0,0.52061524]
[1649147419095,0.13690316,46608.0,46607.0,0.70513045]
[1649147420721,0.13690316,46608.0,46607.0,0.90953236]
[1649147423075,0.13690316,46608.0,46607.0,0.68894273]
[1649147423276,0.13690316,46608.0,46607.0,0.90954872]
[1649147423577,0.13690316,46608.0,46607.0,0.68894273]
[1649147424099,0.13690316,46608.0,46607.0,0.82648301]
[1649147424297,0.13690316,46608.0,46607.0,0.60586891]
[1649147426103,0.01500583,46616.0,46608.0,1.73011008]
[1649147426202,0.01500583,46616.0,46615.0,0.24395841]
[1649147426301,0.01500583,46616.0,46615.0,0.24436582]
[1649147426402,0.01500583,46616.0,46615.0,0.29436582]
[1649147426602,0.01500583,46616.0,46615.0,0.5265516]
[1649147426703,0.33537483,46616.0,46615.0,0.5265516]
[1649147426902,0.38537483,46616.0,46615.0,0.5265516]
[1649147428499,0.38537483,46616.0,46615.0,0.52662027]
[1649147431449,0.06500583,46616.0,46615.0,0.52662027]
[1649147431596,0.38537483,46616.0,46615.0,0.52662027]
[1649147431996,0.06500583,46616.0,46615.0,0.52662027]
[1649147432199,0.01500583,46616.0,46615.0,0.52662027]
[1649147432700,0.33537483,46616.0,46615.0,0.52662027]
[1649147432798,0.01500583,46616.0,46615.0,0.52662027]
[1649147435116,0.01500583,46616.0,46615.0,0.52810832]
[1649147435309,0.33537483,46616.0,46615.0,0.52810832]
[1649147435411,0.01500583,46616.0,46615.0,0.47810832]
[1649147435510,0.01500583,46616.0,46615.0,0.52810832]
[1649147435511,0.06500583,46616.0,46615.0,0.52810832]
[1649147435811,0.01500583,46616.0,46615.0,0.52810832]
[1649147437365,0.33537483,46616.0,46615.0,0.52810832]
[1649147437563,0.38537483,46616.0,46615.0,0.52810832]
[1649147437670,0.06500583,46616.0,46615.0,0.52810832]
[1649147437915,0.01500583,46616.0,46615.0,0.52810832]
[1649147439500,0.01500583,46616.0,46615.0,0.70460962]
[1649147439752,0.01500583,46616.0,46615.0,0.52810832]
[1649147440257,0.33537483,46616.0,46615.0,0.52810832]
[1649147440353,0.01500583,46616.0,46615.0,0.52810832]
[1649147440655,0.33537483,46616.0,46615.0,0.53607709]
[1649147440854,0.01500583,46616.0,46615.0,0.71257839]
[1649147441507,0.33537483,46616.0,46615.0,0.71257839]
[1649147441806,0.01500583,46616.0,46615.0,0.53607709]
[1649147441909,0.33537483,46616.0,46615.0,0.53607709]
[1649147445429,0.01500583,46616.0,46615.0,0.53607709]
[1649147445731,0.33537483,46616.0,46615.0,0.53607709]
[1649147446130,0.01500583,46616.0,46615.0,0.53607709]
[1649147446368,0.33537483,46616.0,46615.0,0.53607709]
[1649147446459,0.01500583,46616.0,46615.0,0.53607709]
[1649147446558,0.33537483,46616.0,46615.0,0.53607709]
[1649147449413,1.0485126,46616.0,46615.0,0.53607709]
[1649147449863,1.0485126,46616.0,46615.0,0.53552025]
[1649147450551,1.0485126,46616.0,46615.0,0.83578884]
[1649147450952,1.0485126,46616.0,46615.0,0.53552025]
[1649147455831,0.7281436,46616.0,46615.0,0.53552025]
[1649147456035,1.0485126,46616.0,46615.0,0.71202155]
[1649147456133,1.0485126,46616.0,46615.0,0.53552025]
[1649147456233,0.7281436,46616.0,46615.0,0.53552025]
[1649147456482,0.7281436,46616.0,46615.0,0.71207813]
[1649147456684,1.0485126,46616.0,46615.0,0.71207813]
[1649147456988,1.0485126,46616.0,46615.0,0.53552025]
[1649147458602,0.7281436,46616.0,46615.0,0.53552025]
[1649147458703,1.0485126,46616.0,46615.0,0.53552025]
[1649147458904,0.7281436,46616.0,46615.0,0.53552025]
[1649147459607,0.7281436,46616.0,46615.0,0.71207813]
[1649147460758,1.0485126,46616.0,46615.0,0.71207813]
[1649147460861,0.7281436,46616.0,46615.0,0.71207813]
[1649147461056,1.0485126,46616.0,46615.0,0.71207813]
[1649147461157,0.7281436,46616.0,46615.0,0.71207813]
[1649147461257,0.7281436,46616.0,46615.0,0.53552025]
[1649147461410,1.0485126,46616.0,46615.0,0.53552025]
[1649147461504,1.0485126,46616.0,46615.0,0.85230246]
[1649147462658,1.0485126,46616.0,46615.0,0.85251746]
[1649147468869,0.7281436,46616.0,46615.0,0.85251746]
[1649147469514,1.0485126,46616.0,46615.0,0.85251746]
[1649147479633,0.7281436,46616.0,46615.0,0.85251746]
[1649147480469,1.0485126,46616.0,46615.0,0.85251746]
[1649147482066,0.7281436,46616.0,46615.0,0.85251746]
[1649147482166,1.0485126,46616.0,46615.0,0.85251746]
[1649147482666,0.7281436,46616.0,46615.0,0.85251746]
[1649147482766,1.0485126,46616.0,46615.0,0.85251746]
[1649147482967,0.7281436,46616.0,46615.0,0.85251746]
[1649147483066,1.0485126,46616.0,46615.0,0.85251746]
[1649147483672,1.0485126,46616.0,46615.0,0.60855905]
[1649147486162,1.0485126,46616.0,46615.0,0.51981432]
[1649147486262,1.22415674,46616.0,46615.0,0.51981432]
[1649147486717,1.0485126,46616.0,46615.0,0.51981432]
[1649147487518,1.0485126,46616.0,46615.0,0.5260953]
[1649147488231,1.0485126,46616.0,46615.0,0.5760953]
[1649147489733,0.7281436,46616.0,46615.0,0.5760953]
[1649147489834,1.0485126,46616.0,46615.0,0.5760953]
[1649147491135,0.7281436,46616.0,46615.0,0.5760953]
[1649147491662,1.0485126,46616.0,46615.0,0.5760953]
[1649147492164,0.7281436,46616.0,46615.0,0.5760953]
[1649147493415,1.0485126,46616.0,46615.0,0.5760953]
[1649147493716,0.7281436,46616.0,46615.0,0.5760953]
[1649147493816,1.0485126,46616.0,46615.0,0.5760953]
[1649147496969,0.7281436,46616.0,46615.0,0.5760953]
[1649147497368,1.0485126,46616.0,46615.0,0.5760953]
[1649147497619,0.7281436,46616.0,46615.0,0.5760953]
[1649147497722,1.22415674,46616.0,46615.0,0.5760953]
[1649147497818,0.90378774,46616.0,46615.0,0.5760953]
[1649147498622,1.22415674,46616.0,46615.0,0.5760953]
[1649147498891,1.0485126,46616.0,46615.0,0.5760953]